Cogmind - Beta 12 @@@ ROGUE MODE // 2023.05.13 @ 19:59:22 Player: Ms. V3-11A Result: Destroyed by G-34 Mercenary with Small Laser Performance ------------- Evolutions (1) 500 Regions Visited (3) 600 Robots Destroyed (37) 185 Value Destroyed (979) 979 Prototype IDs (0) 0 Alien Tech Used (0) 0 Bonus (146) 146 TOTAL SCORE: 2410 Bonus ------- Follower Combat Kills 164 Friendly Fire -18 Cogmind --------- Core Integrity 0/400 Matter 275/300 Energy 69/100 System Corruption 8% Temperature Cool (6) Movement Walking (190) Ox1 Location -9/Materials Parts ------- > --- POWER (1) -------- (None) > --- PROPULSION (3) --- Aluminum Leg Aluminum Leg > --- UTILITY (3) ------ Large Storage Unit Hardened Light Armor Plating > --- WEAPON (2) ------- Hammer > --- INVENTORY (15) --- Light Treads Light Treads Large Storage Unit Medium Matter Pod (100) Medium Matter Pod (100) Medium Matter Pod (100) Hardened Light Armor Plating Hardened Light Armor Plating Peak State ------------ > --- POWER ------------ Light Ion Engine > --- PROPULSION ------- Aluminum Leg Aluminum Leg Aluminum Leg > --- UTILITY ---------- Heat Sink Large Storage Unit Hardened Light Armor Plating > --- WEAPON ----------- Beam Cannon Light Cannon > --- INVENTORY -------- Light Treads Light Treads Aluminum Leg Aluminum Leg Large Storage Unit Medium Matter Pod Medium Matter Pod Medium Matter Pod Hardened Light Armor Plating Hardened Light Armor Plating Hardened Light Armor Plating Grenade Launcher Hammer [Rating: 11] Favorites ----------- Power Ion Engine Engine Ion Engine Power Core Light Nuclear Core Propulsion Aluminum Leg Leg Aluminum Leg Utility Large Storage Unit Device Heat Sink Storage Large Storage Unit Protection Hardened Light Armor Plating Weapon Light Cannon Energy Gun EM Pulse Gun Energy Cannon Beam Cannon Ballistic Cannon Light Cannon Launcher Grenade Launcher Impact Weapon Hammer Build | -11 -10 -10 -9 ------- Run | Jun Mat Min Mat Slots Evolved 2 | . . . 2 Power . | . . . . Propulsion 1 | . . . 1 Utility 1 | . . . 1 Weapon . | . . . . Parts Attached 33 | . 8 11 14 Power 4 | . 1 2 1 Engine 3 | . 1 2 . Core 1 | . . . 1 Reactor . | . . . . Propulsion 11 | . . 4 7 Treads . | . . . . Leg 11 | . . 4 7 Wheel . | . . . . Hover . | . . . . Flight . | . . . . Utility 7 | . 3 2 2 Device 2 | . . 2 . Storage 2 | . 2 . . Processor . | . . . . Hackware . | . . . . Protection 3 | . 1 . 2 Artifact . | . . . . Weapon 11 | . 4 3 4 Energy Gun 2 | . 1 . 1 Energy Cannon 2 | . 1 . 1 Ballistic Gun . | . . . . Ballistic Cannon 3 | . 1 2 . Launcher 3 | . 1 1 1 Special Weapon . | . . . . Impact Weapon 1 | . . . 1 Slashing Weapon . | . . . . Piercing Weapon . | . . . . Special Melee Weapon . | . . . . Unidentified Prototypes . | . . . . Corrupted Parts 1 | . . . 1 System Corruption 8 | . . . 8 Parts Lost 18 | . . 4 14 Power 4 | . . 2 2 Propulsion 7 | . . 1 6 Utility 2 | . . . 2 Weapon 5 | . . 1 4 Highest Loss Streak 14 | . . 2 14 To Critical Strikes . | . . . . Average Slot Usage (%) 94 | . 93 99 77 Engine 13 | . 14 13 6 Leg 27 | . 28 27 28 Device 4 | . . 8 8 Storage 13 | . 14 14 11 Protection 7 | . 9 5 6 Energy Gun 5 | . 9 . 1 Energy Cannon 10 | . 8 14 6 Ballistic Cannon 10 | . 8 13 5 Naked Turns . | . . . . Heaviest Build 36 | 12 36 36 35 Greatest Support 30 | 20 20 20 30 Greatest Overweight (x) 3 | . 1 3 2 Average Overweight (x) . | . . 1 . Largest Inventory Capacity 15 | 8 15 15 15 Average Capacity 14 | 8 14 15 15 Most Carried 15 | 5 15 15 14 Average Carried 13 | 4 13 14 11 Final Capacity 15 | 8 15 15 15 Final Carried 15 | 3 15 15 8 Class Distribution -------------------- 84% | Mutant 15% | Scavenger-Mutant Dominant Class ---------------- Mutant | -10/Materials Mutant | -10/Mines Scavenger-Mutant | -9/Materials Resources | -11 -10 -10 -9 ----------- Run | Jun Mat Min Mat Matter Collected 1074 | 200 469 249 156 Remotely . | . . . . Salvage Created 1064 | . 305 418 341 Parts 60 | . 22 27 11 Haulers Intercepted . | . . . . Recyclers Shooed 1 | . 1 . . Parts Field Recycled . | . . . . Retrieved Matter . | . . . . Parts Self-Destructed . | . . . . Prevented . | . . . . Kills | -11 -10 -10 -9 ------- Run | Jun Mat Min Mat Combat Hostiles Destroyed 30 | . 8 13 9 Melee 1 | . . . 1 Guns 3 | . 2 . 1 Cannons 16 | . 3 10 3 AOE 6 | . 3 2 1 Classes Destroyed 8 | . 4 2 2 Worker 5 | . 4 1 . Builder 1 | . 1 . . Tunneler 2 | . . 2 . Swarmer 5 | . 3 2 . Grunt 20 | . 5 10 5 Brawler 2 | . . . 2 Sentry 2 | . . . 2 Assembled 1 | . . 1 . Best Kill Streak 6 | . 4 3 6 Combat Bots Only 6 | . 3 3 6 Max Kills in Single Turn 2 | . 2 2 1 Gunslinging . | . . . . Exploded 1 | . 1 1 1 Melee 1 | . . . 1 Uniques/NPCs Destroyed . | . . . . Combat | -11 -10 -10 -9 -------- Run | Jun Mat Min Mat Damage Taken 2345 | . 104 879 1362 Core 621 | . 14 207 400 Absorbed by Shields . | . . . . Core Remaining (%) 55 | 100 . 11 . Volleys Fired 119 | . 18 70 31 Largest 2 | . 2 2 2 Hottest 100 | . 95 95 100 Shots Fired 172 | . 29 101 42 Gun 21 | . 8 . 13 Cannon 141 | . 17 96 28 Launcher 10 | . 4 5 1 Special . | . . . . Kinetic 58 | . 7 39 12 Thermal 96 | . 10 57 29 Explosive 10 | . 4 5 1 Electromagnetic 8 | . 8 . . Robot Hit Streak 11 | . 8 8 11 Robot Miss Streak 15 | . 3 10 15 Penetration Max . | . . . . Secondary Targets . | . . . . Shots Hit Robots 94 | . 17 40 37 Core Hits 46 | . 15 20 11 Critical Kills . | . . . . Critical Parts Destroyed 3 | . . . 3 Critical Strikes 3 | . . . 3 Smash 3 | . . . 3 Melee Attacks 10 | . . . 10 Impact 10 | . . . 10 Slashing . | . . . . Piercing . | . . . . Sneak Attacks . | . . . . Combat Hostiles . | . . . . Follow-up Attacks . | . . . . Damage Inflicted 2236 | . 529 896 811 Guns 166 | . 56 . 110 Cannons 1360 | . 227 767 366 Explosions 471 | . 246 128 97 Melee 238 | . . . 238 Ramming 1 | . . 1 . Kinetic 575 | . 88 317 170 Thermal 895 | . 139 450 306 Explosive 471 | . 246 128 97 Electromagnetic 56 | . 56 . . Impact 238 | . . . 238 Slashing . | . . . . Piercing . | . . . . Highest Corruption 8 | . . . 8 Average Corruption 8 | . . . 8 Corruption Purged . | . . . . Corruption Blocked . | . . . . Overload Shots . | . . . . Overflow Damage 108 | . 12 . 96 Projectiles 14 | . 12 . 2 Explosions . | . . . . Melee 94 | . . . 94 Knockbacks 5 | . 1 4 . Impact . | . . . . Kinetic 5 | . 1 4 . Secondary . | . . . . Self-Inflicted Damage 12 | . . 12 . Shots 1 | . . 1 . Rammed . | . . . . Targets Rammed 2 | . . 2 . Kicked 2 | . . 2 . Crushed . | . . . . Highest Temperature 344 | . 144 344 92 Average Temperature 109 | . 51 139 37 Received Heat Transfer 912 | . 24 381 507 Effects 8 | . . 8 . Shutdowns 1 | . . 1 . Energy Bleed 2 | . . 2 . Interference 2 | . . 2 . Short Circuit 2 | . . 2 . Damage (minor) 1 | . . 1 . Siege Activations . | . . . . Robots Corrupted . | . . . . Combat Hostiles . | . . . . Parts Fried 3 | . . . 3 Impact Corruptions 4 | . . . 4 Robots Melted 2 | . . 1 1 Combat Hostiles 2 | . . 1 1 Parts Melted 3 | . . 2 1 Heat Transferred 1915 | . 296 962 657 Parts Sabotaged . | . . . . Parts Stolen . | . . . . Parts Stripped . | . . . . Power Chain Reactions . | . . . . Missiles Intercepted . | . . . . Alert | -11 -10 -10 -9 ------- Run | Jun Mat Min Mat Peak Influence 217 | . 202 217 166 Initial 67 | . . . 67 Average 70 | . 41 98 109 Maximum Alert Level 1 | . 1 1 . Low Security (%) 97 | 100 95 99 100 Level 1 2 | . 4 . . Level 2 . | . . . . Level 3 . | . . . . Level 4 . | . . . . Level 5 . | . . . . High Security . | . . . . Max Security . | . . . . Squads Dispatched 4 | . 3 . 1 Investigation 3 | . 3 . . Extermination . | . . . . Reinforcement 1 | . . . 1 Assault . | . . . . Garrison . | . . . . Intercept . | . . . . Searches Triggered . | . . . . Construction Impeded . | . . . . Haulers Reinforced . | . . . . Active Scanning Responses . | . . . . Cargo Convoy Interrupts . | . . . . Stealth | -11 -10 -10 -9 --------- Run | Jun Mat Min Mat Distress Signals 6 | . 1 . 5 Communications Jammed . | . . . . Distress Signals . | . . . . Times Spotted 54 | . 14 20 20 Peak Tracking Total 7 | . 3 3 7 Tactical Retreats 1 | . . 1 . Traps | -11 -10 -10 -9 ------- Run | Jun Mat Min Mat Traps Triggered 2 | . 2 . . Indirectly . | . . . . Trap Hack Attempts . | . . . . Triggered . | . . . . Disarmed . | . . . . Reprogrammed . | . . . . Reused . | . . . . Traps Extracted . | . . . . Installed . | . . . . Triggered . | . . . . Machines | -11 -10 -10 -9 ---------- Run | Jun Mat Min Mat Machines Disabled 5 | . 2 3 . Max in Single Turn 1 | . 1 1 . Machines Repaired . | . . . . Machines Sabotaged . | . . . . Overloaded Fab Kills . | . . . . Hacking | -11 -10 -10 -9 --------- Run | Jun Mat Min Mat Machines Accessed 3 | . 3 . . Terminals 3 | . 3 . . Fabricators . | . . . . Repair Stations . | . . . . Recycling Units . | . . . . Scanalyzers . | . . . . Garrison Access . | . . . . Total Hacks 4 | . 4 . . Successful 4 | . 4 . . Failed . | . . . . Catastrophic . | . . . . Database Lockouts . | . . . . Manual . | . . . . Terminals 4 | . 4 . . Fabricators . | . . . . Repair Stations . | . . . . Recycling Units . | . . . . Scanalyzers . | . . . . Garrison Access . | . . . . Terminal Hacks 4 | . 4 . . Locate Traps 1 | . 1 . . Recall Investigation 1 | . 1 . . Hauler Manifests 1 | . 1 . . Zone Layout 1 | . 1 . . Fabricator Hacks . | . . . . Repair Station Hacks . | . . . . Recycling Unit Hacks . | . . . . Scanalyzer . | . . . . Garrison Access Hacks . | . . . . Unauthorized Hacks . | . . . . Terminals . | . . . . Fabricators . | . . . . Repair Stations . | . . . . Recycling Units . | . . . . Scanalyzers . | . . . . Garrison Access . | . . . . Data Cores Recovered . | . . . . Used . | . . . . Hacking Detections . | . . . . Full Trace Events . | . . . . Feedback Events . | . . . . Feedback Blocked . | . . . . Robot Schematics Acquired . | . . . . Robots Built . | . . . . Authchips . | . . . . Time . | . . . . Total Robot Build Rating . | . . . . Part Schematics Acquired . | . . . . Parts Built . | . . . . Authchips . | . . . . Time . | . . . . Total Part Build Rating . | . . . . Parts Repaired . | . . . . Time . | . . . . Parts Recycled . | . . . . Recycled Matter . | . . . . Retrieved Matter . | . . . . Retrieved Components . | . . . . Parts Scanalyzed . | . . . . Part Schematics Acquired . | . . . . Parts Damaged . | . . . . Bothacking | -11 -10 -10 -9 ------------ Run | Jun Mat Min Mat Used RIF Installer . | . . . . Robots Hacked . | . . . . Non-combat . | . . . . Combat . | . . . . Robot Hacks Applied . | . . . . Relay Couplers Released . | . . . . Fabnet Peak Effective % . | . . . . Robots Rewired . | . . . . Allies Hacked . | . . . . Hacks Repelled . | . . . . Allies | -11 -10 -10 -9 -------- Run | Jun Mat Min Mat Total Allies 4 | . . 4 . Largest Group 3 | . . 3 3 Highest-Rated Group 40 | . . 40 40 Highest-Rated Ally 31 | . . 31 16 Total Orders . | . . . . Ally Attacks 33 | . . 20 13 Total Damage 383 | . . 252 131 Kills 8 | . . 7 1 Allies Corrupted . | . . . . Allies Melted . | . . . . Intel | -11 -10 -10 -9 ------- Run | Jun Mat Min Mat Robot Analysis Total . | . . . . Derelict Logs Recovered 1 | . . 1 . Drone Launches . | . . . . Drone Recoveries . | . . . . Exploration | -11 -10 -10 -9 ------------- Run | Jun Mat Min Mat Turns Passed 3354 | 2 1716 1407 229 Spaces Moved 1426 | 1 819 546 60 Core . | . . . . Treads . | . . . . Legs 1426 | 1 819 546 60 Wheels . | . . . . Hover . | . . . . Flight . | . . . . Fastest Speed 120 | 120 120 190 120 Average Speed 188 | 120 188 190 178 Slowest Speed 330 | 120 190 330 260 Overloaded Moves . | . . . . Propulsion Burnouts . | . . . . Robots Hopped . | . . . . Cave-ins Triggered . | . . . . Exploration Rate (%) 50 | 2 99 94 7 Regions Visited 3 Branch Regions 1 Pre-discovered Areas 1 | . . 1 . Known Exits Taken . | . . . . Unknown Exits Taken 3 | 1 1 1 . Scrap Searched 2 | . . 2 . Spaces Dug . | . . . . Terrain Destroyed 72 | . 24 37 11 Melee . | . . . . Projectile . | . . . . AOE 72 | . 24 37 11 Terrain Rammed . | . . . . Walls Destroyed . | . . . . Machines Disabled . | . . . . Actions | -11 -10 -10 -9 --------- Run | Jun Mat Min Mat Total 1894 | 3 963 808 120 Wait 277 | . 96 176 5 Move 1423 | . 818 545 60 Hop . | . . . . Pick Up 15 | . 15 . . Fast Attach 12 | . 3 5 4 Attach 12 | . 2 2 8 Detach 4 | . 3 1 . Swap 9 | . 3 4 2 Drop 11 | 3 5 3 . Fire 119 | . 18 70 31 Melee 10 | . . . 10 Ram . | . . . . Kick 2 | . . 2 . Crush . | . . . . Escape Stasis . | . . . . Rewire . | . . . . Trap . | . . . . Miscellaneous . | . . . . Route ------- -11/Junkyard -10/Materials (discovered 5 exits: [*Mat x3] / [*Min x2]) -10/Mines (discovered 2 exits: [*Mat x2]) -9/Materials History --------- Turn | Location | Event 3 | -11/Junkyard | Discovered new exit (range 0) 3 | -11/Junkyard | Entered Materials 203 | -10/Materials | Discovered new exit (range 9) 303 | -10/Materials | Discovered new exit (range 10) 316 | -10/Materials | Build established: Mutant 559 | -10/Materials | Discovered new exit (range 13) 666 | -10/Materials | Discovered new exit (range 11) 1137 | -10/Materials | Discovered new exit (range 16) 1719 | -10/Materials | Entered Mines 1793 | -10/Mines | Excavation squad dispatched 1793 | -10/Mines | A large section of the Mines collapsed 1957 | -10/Mines | Learned location of Zion (-6) 2043 | -10/Mines | Excavation squad dispatched 2247 | -10/Mines | Core integrity fell below 50% 2293 | -10/Mines | Excavation squad dispatched 2409 | -10/Mines | Received a Mining Laser from a helpful Derelict 2543 | -10/Mines | Excavation squad dispatched 2637 | -10/Mines | Discovered new exit (range 11) 2695 | -10/Mines | Discovered new exit (range 5) 2759 | -10/Mines | Core integrity fell below 20% 2794 | -10/Mines | Assisted by bots powering up and referring to "LRC-V3" 3078 | -10/Mines | Build established: Scavenger-Mutant 3126 | -10/Mines | Entered Materials 3126 | -9/Materials | Accompanied by 3 allies 3126 | -9/Materials | Evolved 2 slots: Propulsion x1, Utility x1 3287 | -9/Materials | Core integrity fell below 50% 3336 | -9/Materials | Core integrity fell below 20% 3355 | -9/Materials | Destroyed by G-34 Mercenary with Small Laser Last Messages --------------- 03330_ G-34 Mercenary IFF system glitched. 03331_ G-34 Mercenary system terminally corrupted. 03331_ Ion Engine fried. 03331_ Sml. Laser fried. 03331_ K-01 Serf collects debris. 03337_ Aluminum Leg destroyed. 03337_ G-34 Mercenary suffers critical hit (Smash). 03337_ Destroyed Heat Sink. 03337_ G-34 Mercenary system corrupted by crushing effect. 03340_ W-16 Scout sends out distress signal. 03341_ K-01 Serf collects debris. 03348_ S-10 Pest destroyed. 03349_ Aluminum Leg destroyed. 03351_ K-01 Serf collects debris. 03351_ R-06 Scavenger collects Aluminum Leg. 03351_ K-01 Serf collects debris. 03352_ Acquired Corrupted Aluminum Leg. 03352_ Integrated Corrupted Aluminum Leg (+8). 03353_ G-34 Mercenary misfires. 03355_ K-01 Serf collects debris. Map ----- +----------------------------------------------------+ | ????????????????????????????????????????????????? | | ????????????????????????????????????????????????? | | ????????????????????????????????????????????????? | | ????????????????????????????????????????????????? | | ????????????????????????????????????????????????? | | ????????????????????????????????????????????????? | | ????????????????????????????????????????????????? | | ????????????????????????????????????????????????? | | ????????????????????????????????????????????????? | | ????????????????????????????????????????????????? | | ????????????????????????? ????????????????????? | | ????????????????????????? #???????????????????? | | ?????????????????????????w #???????????????????? | | ????????????????????????# #???????????????????? | | ????????????????????????# #???????????????????? | | ???????????????????????## ##??????????????????? | | ???????????????????????# m%#??#########???????? | | ???????????????????????#% % #??# #???????? | | ??????????????????????? % #??# #?#?????? | | ???????????????????????? #??# # #?????? | | ???????????????????????? % ???# #####+##????? | | ???????????????????????## ##??# # #????? | | ???????????????????????## % ##??# # """ #????? | | ??????????????????? ####r% ##??# + """ #????? | | ??????????????????? """#gk!##??# # """ #????? | | ???????????????????? R"#@ #???# # #????? | | ??????????????????????""# %#???# # #????? | | ???????????????????????##% #???# ########????? | | ????????????????????????#% !#???# #???????????? | | ????????????????????????#w%=#???# #???????????? | | ????????????????????????#**%#???# #???????????? | | ????????????????????????#=%%#???# #???????????? | | ????????????????????????#!ks#???# #???????????? | | ????????????????????????# %#??## ##??????????? | | ????????????????????????# #### #??????????? | | ????????????????????????# #??????????? | | ????????????????????????# T #??????????? | | ????????????????????????# #??????????? | | ????????????????????????########! #??????????? | | ???????????????????????????????#### #??????????? | | ??????????????????????????????????# #??????????? | | ??????????????????????????????????# #??????????? | | ??????????????????????????????????# #??????????? | | ??????????????????????????????????# *#??????????? | | ??????????????????????????????????# %#??????????? | | ??????????????????????????????????#% #??????????? | | ??????????????????????????????????# #??????????? | | ??????????????????????????????????? #??????????? | | ??????????????????????????????????? #??????????? | | ??????????????????????????????????? ???????????? | +----------------------------------------------------+ Best States ------------- Heat Dissipation 38 Energy Generation 14 Energy Capacity 250 Matter Stores 300 Matter Capacity 300 Sight Range 16 Terrain Scan Range 16 Terrain Scan Density 10 Armor Coverage 150 Evasion (%) 50 Item Schematics ----------------- None Robot Schematics ------------------ None Fabricated ------------ Nothing Alien Tech Used ----------------- None Achievements -------------- None Challenges ------------ None Game ------ Seed SubatomicEnergyLance Manual? 0 Play Time 00:22:35 Cumulative 117.4 hours Start 2023.05.13 @ 19:30:48 End 2023.05.13 @ 19:59:22 Sessions 1 Manual Loads 0 Difficulty Rogue Special Mode None Game No. 109 Rogue 61 Adventurer 22 Explorer 26 Win Type - Total 0 Types 0/0/0/0/0/0/0/0/0 Lore% 38 Gallery% 57 Achievement% 66 Wizard Run 0 Options --------- ASCII 0 Keyboard 0 Movement Mouse Keybinds 0 Fullscreen 0 Font 16/Smallcaps Map View 76x50 Tactical HUD 1 Map Filters NONE Filters BRIGHTNESS(125)|SATURATION(75)|LOW_CONTRAST(0,16,30)|SHIFT_HUE(130) Steam 1 RUN: cd8d607e-98a3-47b7-86cc-2749084a5d0b